fUST/lending_fUST_20240724
["ID","MTS","AMOUNT","RATE_DAILY","PERIOD"]
[333059268,1721789857597,-500.0,0.00013698,2]
[333059269,1721789857620,-3402.48,0.00013698,2]
[333059270,1721789857644,-500.0,0.00013698,2]
[333059271,1721789857667,-500.0,0.00013698,2]
[333059272,1721789857691,-500.0,0.00013698,2]
[333059273,1721789857716,-500.0,0.00013698,2]
[333059274,1721789857738,-500.0,0.00013698,2]
[333059275,1721789857762,-500.0,0.00013698,2]
[333059276,1721789857787,-500.0,0.00013698,2]
[333059277,1721789857812,-500.0,0.00013698,2]
[333059278,1721789857835,-380.47185748,0.00013698,2]
[333059279,1721789857862,-500.0,0.00013698,2]
[333059280,1721789857885,-500.0,0.00013698,2]
[333059281,1721789857906,-500.0,0.00013698,2]
[333059282,1721789857930,-500.0,0.00013698,2]
[333059283,1721789857953,-500.0,0.00013698,2]
[333059284,1721789857974,-500.0,0.00013698,2]
[333059285,1721789857997,-500.0,0.00013698,2]
[333059286,1721789858019,-500.0,0.00013698,2]
[333059287,1721789858042,-385.92532046,0.00013698,2]
[333059288,1721789858064,-500.0,0.00013698,2]
[333059289,1721789858086,-500.0,0.00013698,2]
[333059290,1721789858110,-500.0,0.00013698,2]
[333059291,1721789858132,-500.0,0.00013698,2]
[333059292,1721789858154,-500.0,0.00013698,2]
[333059293,1721789858177,-500.0,0.00013698,2]
[333059294,1721789858200,-500.0,0.00013698,2]
[333059295,1721789858224,-2969.28,0.00013698,2]
[333059296,1721789858247,-1548.81,0.00013698,2]
[333059297,1721789858270,-500.0,0.00013698,2]
[333059298,1721789858292,-195.48499139,0.00013698,2]
[333059299,1721789858320,-500.0,0.00013698,2]
[333059300,1721789858343,-500.0,0.00013698,2]
[333059301,1721789858369,-653.08993171,0.00013698,2]
[333059302,1721789858392,-653.08993171,0.00013698,2]
[333059303,1721789858416,-635.0,0.00013698,2]
[333059304,1721789858440,-653.08993171,0.00013698,2]
[333059305,1721789858464,-653.08993171,0.00013698,2]
[333059306,1721789858488,-500.0,0.00013698,2]
[333059307,1721789858510,-653.08993171,0.00013698,2]
[333059308,1721789858533,-653.08993171,0.00013698,2]
[333059309,1721789858556,-653.08993171,0.00013698,2]
[333059310,1721789858579,-653.08993171,0.00013698,2]
[333059311,1721789858603,-653.08993171,0.00013698,2]
[333059312,1721789858626,-653.08993171,0.00013698,2]
[333059313,1721789858648,-500.0,0.00013698,2]
[333059314,1721789858672,-500.0,0.00013698,2]
[333059315,1721789858697,-500.0,0.00013698,2]
[333059316,1721789858722,-500.0,0.00013698,2]
[333059317,1721789858747,-500.0,0.00013698,2]
[333059318,1721789858770,-500.0,0.00013698,2]
[333059319,1721789858793,-500.0,0.00013698,2]
[333059320,1721789858818,-500.0,0.00013698,2]
[333059321,1721789858843,-500.0,0.00013698,2]
[333059322,1721789858871,-500.0,0.00013698,2]
[333059323,1721789858898,-11383.89,0.00013698,2]
[333059324,1721789858927,-1532.72,0.00013698,2]
[333059325,1721789858954,-500.0,0.00013698,2]
[333059326,1721789858980,-500.0,0.00013698,2]
[333059327,1721789859004,-709.86,0.00013698,2]
[333059328,1721789859029,-500.0,0.00013698,2]
[333059329,1721789859055,-500.0,0.00013698,2]
[333059330,1721789859084,-500.0,0.00013698,2]
[333059331,1721789859111,-500.0,0.00013698,2]
[333059332,1721789859137,-638.59253205,0.00013698,2]
[333059333,1721789859160,-500.0,0.00013698,2]
[333059334,1721789859182,-500.0,0.00013698,2]
[333059335,1721789859206,-500.0,0.00013698,2]
[333059336,1721789859229,-600.0,0.00013698,2]
[333059337,1721789859253,-514.83220706,0.00013698,2]
[333059338,1721789859276,-500.0,0.00013698,2]
[333059339,1721789859301,-500.0,0.00013698,2]
[333059340,1721789859328,-500.0,0.00013698,2]
[333059341,1721789859352,-500.0,0.00013698,2]
[333059342,1721789859375,-655.85726193,0.00013698,2]
[333059343,1721789859401,-655.85726193,0.00013698,2]
[333059344,1721789859423,-655.85726193,0.00013698,2]
[333059345,1721789859447,-655.85726193,0.00013698,2]
[333059346,1721789859471,-655.85726193,0.00013698,2]
[333059347,1721789859495,-655.85726193,0.00013698,2]
[333059348,1721789859518,-433.88049865,0.00013698,2]
[333059349,1721789859541,-272.34767753,0.00013698,2]
[333059350,1721789859565,-500.0,0.00013698,2]
[333059351,1721789859588,-7656.21,0.00013698,2]
[333059352,1721789859611,-506.51684604,0.00013698,2]
[333059353,1721789859633,-500.0,0.00013698,2]
[333059354,1721789859656,-500.0,0.00013698,2]
[333059355,1721789859679,-758.14,0.00013698,2]
[333059356,1721789859703,-500.0,0.00013698,2]
[333059357,1721789859727,-621.61,0.00013698,2]
[333059358,1721789859750,-6587.12,0.00013698,2]
[333059359,1721789859774,-680.88339429,0.00013698,2]
[333059360,1721789859797,-680.88339429,0.00013698,2]
[333059361,1721789859820,-680.88339429,0.00013698,2]
[333059362,1721789859843,-500.0,0.00013698,2]
[333059363,1721789859866,-680.88339429,0.00013698,2]
[333059364,1721789859889,-1951.35,0.00013698,2]
[333059365,1721789859913,-715.79,0.00013698,2]
[333059366,1721789859938,-151.0,0.00013699,2]
[333059367,1721789859961,-151.0,0.00013699,2]
[333059368,1721789859987,-151.0,0.00013699,2]
[333059369,1721789860011,-152.528617,0.00013699,2]
[333059370,1721789860036,-151.0,0.00013699,2]
[333059371,1721789860061,-151.0,0.00013699,2]
[333059372,1721789860087,-151.0,0.00013699,2]
[333059373,1721789860112,-151.0,0.00013699,2]
[333059374,1721789860135,-151.0,0.00013699,2]
[333059375,1721789860159,-151.0,0.00013699,2]
[333059376,1721789860182,-151.0,0.00013699,2]
[333059377,1721789860205,-151.0,0.00013699,2]
[333059378,1721789860232,-151.0,0.00013699,2]
[333059379,1721789860256,-151.0,0.00013699,2]
[333059380,1721789860279,-151.0,0.00013699,2]
[333059381,1721789860307,-151.0,0.00013699,2]
[333059382,1721789860333,-151.0,0.00013699,2]
[333059383,1721789860358,-229.850189,0.00013699,2]
[333059384,1721789860381,-807.857699,0.00013699,2]
[333059385,1721789860408,-807.857699,0.00013699,2]
[333059386,1721789860432,-807.857699,0.00013699,2]
[333059387,1721789860456,-807.857699,0.00013699,2]
[333059388,1721789860482,-807.857699,0.00013699,2]
[333059389,1721789860506,-807.857699,0.00013699,2]
[333059390,1721789860530,-807.857699,0.00013699,2]
[333059391,1721789860556,-807.857699,0.00013699,2]
[333059392,1721789860582,-807.857699,0.00013699,2]
[333059393,1721789860608,-807.857699,0.00013699,2]
[333059394,1721789860632,-807.857699,0.00013699,2]
[333059395,1721789860657,-807.857702,0.00013699,2]
[333059396,1721789860681,-3000.0,0.00013699,2]
[333059397,1721789860704,-9323.1231288,0.00013699,2]
[333059398,1721789860727,-1715.543798,0.00013699,2]
[333059399,1721789860751,-151.0,0.00013699,2]
[333059400,1721789860776,-151.817,0.00013765,2]
[333059401,1721789860800,-355.335,0.00013765,2]
[333059402,1721789860823,-250.271,0.00013765,2]
[333059403,1721789860850,-150.0,0.00013765,2]
[333059404,1721789860877,-1409.0,0.00013765,2]
[333059405,1721789860904,-263.559113,0.00013785,2]
[333059406,1721789860929,-218.008271,0.00013785,2]
[333059407,1721789860954,-168.368593,0.00013785,2]
[333059408,1721789860981,-212.384084,0.00013785,2]
[333059409,1721789861006,-182.159337,0.00013842,2]
[333059410,1721789861032,-150.498246,0.00013842,2]
[333059411,1721789861062,-480.14183401,0.0001395,2]
[333059412,1721789861087,-218.008271,0.00013955,2]
[333059413,1721789861115,-263.559113,0.00013955,2]
[333059414,1721789861141,-168.368593,0.00013955,2]
[333059415,1721789861167,-212.384084,0.00013955,2]
[333059416,1721789861194,-2880.85100406,0.00013962,2]
[333059417,1721789861217,-186.77593733,0.00013972,2]
[333059418,1721789861241,-500.0,0.00013972,2]
[333059419,1721789861264,-500.0,0.00013972,2]
[333059420,1721789861288,-500.0,0.00013972,2]
[333059421,1721789861314,-507.62183612,0.00013972,2]
[333059422,1721789861338,-500.0,0.00013972,2]
[333059423,1721789861364,-500.0,0.00013972,2]
[333059424,1721789861389,-500.0,0.00013972,2]
[333059425,1721789861413,-500.0,0.00013972,2]
[333059426,1721789861437,-500.0,0.00013972,2]
[333059427,1721789861461,-500.0,0.00013972,2]
[333059428,1721789861485,-507.31766967,0.00013972,2]
[333059429,1721789861509,-668.8,0.00013972,2]
[333059430,1721789861533,-500.0,0.00013972,2]
[333059431,1721789861556,-574.95342337,0.00013972,2]
[333059432,1721789861580,-500.0,0.00013972,2]
[333059433,1721789861604,-500.0,0.00013972,2]
[333059434,1721789861629,-500.0,0.00013972,2]
[333059435,1721789861655,-1770.75,0.00013972,2]
[333059436,1721789861682,-500.0,0.00013972,2]
[333059437,1721789861707,-547.76,0.00013972,2]
[333059438,1721789861734,-500.0,0.00013972,2]
[333059439,1721789861758,-500.0,0.00013972,2]
[333059440,1721789861782,-500.0,0.00013972,2]
[333059441,1721789861805,-506.48632232,0.00013972,2]
[333059442,1721789861830,-500.0,0.00013972,2]
[333059443,1721789861855,-500.0,0.00013972,2]
[333059444,1721789861881,-500.0,0.00013972,2]
[333059445,1721789861911,-650.21,0.00013972,2]
[333059446,1721789861936,-509.75772165,0.00013972,2]
[333059447,1721789861961,-1152.99,0.00013972,2]
[333059448,1721789861985,-623.01,0.00013972,2]
[333059449,1721789862009,-500.0,0.00013972,2]
[333059450,1721789862034,-500.0,0.00013972,2]
[333059451,1721789862058,-500.0,0.00013972,2]
[333059452,1721789862081,-500.0,0.00013972,2]
[333059453,1721789862106,-419.36741965,0.00013972,2]
[333059454,1721789862130,-504.23846723,0.00013972,2]
[333059455,1721789862154,-1109.26,0.00013972,2]
[333059456,1721789862177,-500.0,0.00013972,2]
[333059457,1721789862202,-500.0,0.00013972,2]
[333059458,1721789862225,-500.0,0.00013972,2]
[333059459,1721789862249,-500.0,0.00013972,2]
[333059460,1721789862274,-500.0,0.00013972,2]
[333059461,1721789862297,-500.0,0.00013972,2]
[333059462,1721789862532,-500.0,0.00013972,2]
[333059463,1721789862556,-301.04946198,0.00013972,2]
[333059464,1721789862583,-522.18,0.00013972,2]
[333059465,1721789862611,-500.0,0.00013972,2]
[333059466,1721789862637,-2331.0,0.00013972,2]
[333059467,1721789862663,-500.0,0.00013972,2]
[333059468,1721789862688,-633.52,0.00013972,2]
[333059469,1721789862716,-500.0,0.00013972,2]
[333059470,1721789862740,-500.0,0.00013972,2]
[333059471,1721789862767,-500.0,0.00013972,2]
[333059472,1721789862791,-500.0,0.00013972,2]
[333059473,1721789862816,-231.63467579,0.00013972,2]
[333059474,1721789863031,-500.0,0.00013972,2]
[333059475,1721789863056,-500.0,0.00013972,2]
[333059476,1721789863080,-1509.78,0.00013972,2]
[333059477,1721789863109,-500.0,0.00013972,2]
[333059478,1721789863135,-510.54197256,0.00013972,2]
[333059479,1721789863160,-644.93,0.00013972,2]
[333059480,1721789863187,-500.0,0.00013972,2]
[333059481,1721789863212,-2226.39,0.00013972,2]
[333059482,1721789863238,-500.0,0.00013972,2]
[333059483,1721789863265,-500.0,0.00013972,2]
[333059484,1721789863290,-500.0,0.00013972,2]
[333059485,1721789863319,-500.0,0.00013972,2]
[333059486,1721789863344,-500.0,0.00013972,2]
[333059487,1721789863371,-500.0,0.00013972,2]
[333059488,1721789863396,-500.0,0.00013972,2]
[333059489,1721789863422,-689.73,0.00013972,2]
[333059490,1721789863446,-500.0,0.00013972,2]
[333059491,1721789863473,-500.0,0.00013972,2]
[333059492,1721789863499,-297.88489566,0.00013972,2]
[333059493,1721789863524,-500.0,0.00013972,2]
[333059494,1721789863550,-1071.17,0.00013972,2]
[333059495,1721789863582,-500.0,0.00013972,2]
[333059496,1721789863609,-613.25,0.00013972,2]
[333059497,1721789863636,-500.0,0.00013972,2]
[333059498,1721789863663,-500.0,0.00013972,2]
[333059499,1721789863689,-500.0,0.00013972,2]
[333059500,1721789863716,-1747.17,0.00013972,2]
[333059501,1721789863744,-500.0,0.00013972,2]
[333059502,1721789863770,-4020.12,0.00013972,2]
[333059503,1721789863798,-500.0,0.00013972,2]
[333059504,1721789863823,-500.0,0.00013972,2]
[333059505,1721789863850,-500.0,0.00013972,2]
[333059506,1721789863876,-789.71,0.00013972,2]
[333059507,1721789863902,-500.0,0.00013972,2]
[333059508,1721789863930,-3045.82,0.00013972,2]
[333059509,1721789863956,-500.0,0.00013972,2]
[333059510,1721789863980,-512.71042562,0.00013972,2]
[333059511,1721789864006,-500.0,0.00013972,2]
[333059512,1721789864033,-549.77,0.00013972,2]
[333059513,1721789864058,-500.0,0.00013972,2]
[333059514,1721789864084,-500.0,0.00013972,2]
[333059515,1721789864112,-268.25320856,0.00013972,2]
[333059525,1721790346924,-540.45129509,9.999e-05,2]
[333059527,1721790348601,-429.20536052,9.999e-05,2]
[333059528,1721790355337,-154.72922386,9.999e-05,2]
[333059529,1721790393647,-413.45473308,9.999e-05,2]
[333059530,1721790405681,-266.34404035,9.999e-05,2]
[333059532,1721790420909,-255.15754295,9.999e-05,2]
[333059533,1721790422014,-154.80649189,9.999e-05,2]
[333059534,1721790426184,-3279.3312697,0.00012695,2]
[333059535,1721790426208,-200.0,0.00013425,2]
[333059536,1721790426231,-866.83667703,0.00013598,2]
[333059537,1721790428619,-188.02900327,9.999e-05,2]
[333059538,1721790440144,-226.11038111,0.00013598,2]
[333059539,1721790440170,-792.23402613,0.00013688,2]
[333059540,1721790440193,-300.0,0.00013697,2]
[333059541,1721790440399,-500.0,0.00013698,2]
[333059542,1721790440422,-500.0,0.00013698,2]
[333059543,1721790440445,-500.0,0.00013698,2]
[333059544,1721790440469,-273.3228709,0.00013698,2]
[333059545,1721790452131,-164.21289607,0.00013698,2]
[333059612,1721790640524,-62.46423303,0.00013698,2]
[333059613,1721790640533,-500.0,0.00013698,2]
[333059614,1721790640543,-500.0,0.00013698,2]
[333059615,1721790640557,-500.0,0.00013698,2]
[333059616,1721790640566,-500.0,0.00013698,2]
[333059617,1721790640577,-500.0,0.00013698,2]
[333059618,1721790640588,-613.06,0.00013698,2]
[333059619,1721790640600,-500.0,0.00013698,2]
[333059620,1721790640611,-500.70729248,0.00013698,2]
[333059621,1721790640621,-350.78407026,0.00013698,2]
[333059695,1721790646828,-790.24554772,0.00013698,2]
[333059696,1721790646842,-482.16038202,0.00013698,2]
[333059697,1721790646852,-500.0,0.00013698,2]
[333059698,1721790646862,-500.0,0.00013698,2]
[333059699,1721790646871,-500.0,0.00013698,2]
[333059700,1721790646881,-500.0,0.00013698,2]
[333059701,1721790646891,-141.44973448,0.00013698,2]
[333059723,1721791486930,-154.72922386,9.999e-05,2]
[333059724,1721791486953,-51.26909814,9.999e-05,2]
[333059725,1721791491410,-154.72922386,9.999e-05,2]
[333059726,1721791503447,-663.51231387,9.999e-05,2]
[333059727,1721791510780,-154.80649189,9.999e-05,2]
[333059728,1721791520323,-887.61771083,9.999e-05,2]
[333059729,1721791542221,-404.3074502,9.999e-05,2]
[333059730,1721791571302,-413.45473308,9.999e-05,2]
[333059731,1721791590876,-154.72922386,9.999e-05,2]
[333059732,1721791601672,-154.72922386,9.999e-05,2]
[333059733,1721791614487,-155.20238308,9.999e-05,2]
[333059734,1721791618211,-260.7346464,9.999e-05,2]
[333059735,1721791632407,-328.03206869,9.999e-05,2]
[333059736,1721791639170,-154.72922386,0.0001,2]
[333059737,1721791639195,-154.80649189,0.0001,2]
[333059738,1721791639219,-225.04706201,0.0001212,2]
[333059739,1721791639243,-300.0,0.00012601,2]
[333059740,1721791639269,-5626.29288307,0.00012602,2]
[333059741,1721791642133,-6570.06287767,0.00012602,2]
[333059742,1721791658701,-188.02900327,9.999e-05,2]
[333059743,1721791663591,-154.72922386,9.999e-05,2]
[333059746,1721791698204,-158.43768051,9.999e-05,2]
[333059755,1721791749124,-184.04,0.00010959,2]
[333059756,1721791749151,-154.88375992,0.0001212,2]
[333059757,1721791749173,-941.73928157,0.0001212,2]
[333059758,1721791749196,-278.18201469,0.0001212,2]
[333059759,1721791795616,1961.47,0.0001212,2]
[333059760,1721791795639,1894.540126,0.0001212,2]
[333059761,1721791795663,1964.90326237,0.0001212,2]
[333059762,1721791795687,1964.64,0.0001212,2]
[333059763,1721791795710,1981.94538062,0.0001212,2]
[333059764,1721791795735,1946.13,0.0001212,2]
[333059765,1721791795762,1948.24,0.0001212,2]
[333059766,1721791795784,1888.66977369,0.0001212,2]
[333059803,1721791832693,-1004.25000015,0.0001212,2]
[333059804,1721791832707,-4324.44606951,0.0001212,2]
[333059805,1721791832866,-3054.76416451,0.0001212,2]
[333059840,1721791839045,-18179.16718334,0.0001212,2]
[333059879,1721791843879,-35203.56006271,0.0001212,2]
[333059880,1721791843891,-9932.79944994,0.0001212,2]
[333059881,1721791843900,-2215.94943739,0.00012502,2]
[333059882,1721791843910,-5070.67341536,0.00012602,2]
[333059883,1721791843920,-200.0,0.00013425,2]
[333059884,1721791843930,-956.32867589,0.00013598,2]
[333059885,1721791843942,-361.72144189,0.00013621,2]
[333059886,1721791843954,-1346.7978444,0.00013688,2]
[333059887,1721791843965,-224.4663074,0.00013689,2]
[333059888,1721791843975,-1000.0,0.0001369,2]
[333059889,1721791843986,-300.5304923,0.00013697,2]
[333059890,1721791843997,-500.0,0.00013698,2]
[333059891,1721791844007,-500.0,0.00013698,2]
[333059892,1721791844017,-500.0,0.00013698,2]
[333059893,1721791844030,-362.16536709,0.00013698,2]
[333059894,1721791844040,-500.0,0.00013698,2]
[333059895,1721791844052,-525.06,0.00013698,2]
[333059896,1721791844063,-500.0,0.00013698,2]
[333059897,1721791844073,-500.0,0.00013698,2]
[333059898,1721791844084,-500.0,0.00013698,2]
[333059899,1721791844097,-500.0,0.00013698,2]
[333059900,1721791844107,-164.79626247,0.00013698,2]
[333059901,1721791844118,-500.0,0.00013698,2]
[333059902,1721791844131,-500.0,0.00013698,2]
[333059903,1721791844142,-500.0,0.00013698,2]
[333059904,1721791844153,-500.0,0.00013698,2]
[333059905,1721791844163,-500.0,0.00013698,2]
[333059906,1721791844175,-500.0,0.00013698,2]
[333059907,1721791844186,-608.27,0.00013698,2]
[333059908,1721791844199,-500.0,0.00013698,2]
[333059909,1721791844208,-500.0,0.00013698,2]
[333059910,1721791844221,-500.0,0.00013698,2]
[333059911,1721791844232,-2135.83,0.00013698,2]
[333059913,1721791844243,-500.0,0.00013698,2]
[333059915,1721791844255,-500.0,0.00013698,2]
[333059916,1721791844265,-617.51,0.00013698,2]
[333059917,1721791844276,-600.44808266,0.00013698,2]
[333059918,1721791844285,-500.0,0.00013698,2]
[333059919,1721791844296,-165.826552,0.00013698,2]
[333059920,1721791844307,-500.0,0.00013698,2]
[333059921,1721791844319,-500.0,0.00013698,2]
[333059922,1721791844330,-500.0,0.00013698,2]
[333059923,1721791844342,-3685.11,0.00013698,2]
[333059924,1721791844352,-500.0,0.00013698,2]
[333059925,1721791844362,-552.97545721,0.00013698,2]
[333059926,1721791844374,-562.15,0.00013698,2]
[333059927,1721791844384,-1545.23,0.00013698,2]
[333059928,1721791844395,-500.0,0.00013698,2]
[333059929,1721791844407,-151.0,0.00013698,2]
[333059930,1721791844419,-500.0,0.00013698,2]
[333059931,1721791844430,-723.9,0.00013698,2]
[333059932,1721791844442,-1601.57,0.00013698,2]
[333059933,1721791844455,-500.0,0.00013698,2]
[333059934,1721791844466,-500.0,0.00013698,2]
[333059935,1721791844478,-500.0,0.00013698,2]
[333059936,1721791844488,-500.0,0.00013698,2]
[333059937,1721791844498,-500.0,0.00013698,2]
[333059938,1721791844508,-1279.66,0.00013698,2]
[333059939,1721791844520,-500.0,0.00013698,2]
[333059940,1721791844531,-500.0,0.00013698,2]
[333059941,1721791844542,-500.0,0.00013698,2]
[333059942,1721791844552,-500.0,0.00013698,2]
[333059943,1721791844564,-758.45,0.00013698,2]
[333059944,1721791844575,-503.95,0.00013698,2]
[333059945,1721791844586,-1396.36,0.00013698,2]
[333059946,1721791844599,-500.0,0.00013698,2]
[333059947,1721791844611,-500.0,0.00013698,2]
[333059948,1721791844621,-563.97,0.00013698,2]
[333059949,1721791844632,-1521.95,0.00013698,2]
[333059950,1721791844645,-500.0,0.00013698,2]
[333059951,1721791844655,-506.90369653,0.00013698,2]
[333059952,1721791844666,-2062.17602237,0.00013698,2]
[333059953,1721791844677,-2026.33,0.00013698,2]
[333059954,1721791844687,-500.0,0.00013698,2]
[333059955,1721791844699,-1336.65,0.00013698,2]
[333059956,1721791844709,-634.4,0.00013698,2]
[333059957,1721791844719,-504.48662313,0.00013698,2]
[333059958,1721791844729,-500.0,0.00013698,2]
[333059959,1721791844739,-512.0384615,0.00013698,2]
[333059960,1721791844749,-500.0,0.00013698,2]
[333059961,1721791844759,-670.29,0.00013698,2]
[333059962,1721791844771,-1133.29,0.00013698,2]
[333059963,1721791844783,-511.23042736,0.00013698,2]
[333059964,1721791844793,-500.0,0.00013698,2]
[333059965,1721791844805,-277.20004014,0.00013698,2]
[333059966,1721791844816,-839.48,0.00013698,2]
[333059967,1721791844827,-500.0,0.00013698,2]
[333059968,1721791844839,-561.66024295,0.00013698,2]
[333059969,1721791844856,-61.83975705,0.00013698,2]
[333059970,1721791844867,-500.0,0.00013698,2]
[333059971,1721791844878,-500.0,0.00013698,2]
[333059972,1721791844889,-500.0,0.00013698,2]
[333059973,1721791844900,-1683.42379052,0.00013698,2]
[333059986,1721791847106,-181.88620948,0.00013698,2]
[333059987,1721791847117,-308.19830358,0.00013698,2]
[333059988,1721791847127,-717.47,0.00013698,2]
[333059989,1721791847137,-2181.69,0.00013698,2]
[333059990,1721791847148,-500.0,0.00013698,2]
[333059991,1721791847159,-1118.49,0.00013698,2]
[333059992,1721791847352,-504.95276708,0.00013698,2]
[333059993,1721791847364,-1291.69,0.00013698,2]
[333059994,1721791847375,-598.32,0.00013698,2]
[333059995,1721791847386,-1383.65,0.00013698,2]
[333059996,1721791847397,-505.69815107,0.00013698,2]
[333059997,1721791847409,-148.39000493,0.00013698,2]
[333059998,1721791863533,-376.29598389,9.999e-05,2]
[333059999,1721791911309,-156.40691398,9.999e-05,2]
[333060001,1721791925245,-202.78437057,9.999e-05,2]
[333060002,1721791928688,-82.87781889,9.999e-05,2]
[333060003,1721791928712,-72.08919396,9.999e-05,2]
[333060004,1721791932982,-130.69517661,9.999e-05,2]
[333060005,1721791933006,-154.96701285,9.999e-05,2]
[333060006,1721791933028,-145.89073884,9.999e-05,2]
[333060007,1721791935700,-60.69677289,9.999e-05,2]
[333060008,1721791935723,-250.12520279,9.999e-05,2]
[333060009,1721791940041,-59.30235623,9.999e-05,2]
[333060010,1721791940065,-128.72664704,9.999e-05,2]
[333060011,1721791941665,-163.28779954,9.999e-05,2]
[333060012,1721791942840,-139.53848172,9.999e-05,2]
[333060013,1721791942864,-163.28779954,9.999e-05,2]
[333060014,1721791952723,-147.53417614,9.999e-05,2]
[333060015,1721791952749,-7.27231575,9.999e-05,2]
[333060016,1721791961537,-180.75668752,9.999e-05,2]
[333060018,1721791970211,-208.57429241,9.999e-05,2]
[333060019,1721791971487,-184.31908474,9.999e-05,2]
[333060022,1721792167592,-154.80649189,9.999e-05,2]
[333060023,1721792167618,-8.48130765,9.999e-05,2]
[333060024,1721792169428,-200.09298476,9.999e-05,2]
[333060025,1721792285379,-155.60380753,9.999e-05,2]
[333060026,1721792288268,-7.68399201,9.999e-05,2]
[333060027,1721792288293,-155.60380753,9.999e-05,2]
[333060028,1721792288316,-45.22028107,9.999e-05,2]
[333060029,1721792292239,-163.28779954,9.999e-05,2]
[333060031,1721792825135,-4594.04,0.0001267,2]
[333060032,1721792843127,-4350.67975701,0.0001267,2]
[333060091,1721793038728,-273.8168122,0.00012657,2]
[333060092,1721793038738,-398.50884179,0.0001267,2]
[333060093,1721793038748,-200.0,0.00013425,2]
[333060094,1721793038759,-200.0,0.0001355,2]
[333060095,1721793038768,-836.78759143,0.00013598,2]
[333060096,1721793038780,-172.226729,0.00013615,2]
[333060097,1721793038790,-1278.1804705,0.00013688,2]
[333060128,1721793044028,-1203.3446033,0.00013688,2]
[333060129,1721793044039,-496.30501476,0.00013689,2]
[333060130,1721793044048,-300.0,0.00013697,2]
[333060131,1721793044058,-151.0,0.00013698,2]
[333060132,1721793044067,-151.0,0.00013698,2]
[333060133,1721793044076,-500.0,0.00013698,2]
[333060134,1721793044086,-151.0,0.00013698,2]
[333060135,1721793044097,-500.0,0.00013698,2]
[333060136,1721793044109,-500.0,0.00013698,2]
[333060137,1721793044119,-151.0,0.00013698,2]
[333060138,1721793044128,-151.0,0.00013698,2]
[333060139,1721793044138,-151.0,0.00013698,2]
[333060140,1721793044147,-687.58,0.00013698,2]
[333060141,1721793044158,-500.0,0.00013698,2]
[333060142,1721793044169,-348.25424065,0.00013698,2]
[333060143,1721793044180,-500.0,0.00013698,2]
[333060144,1721793044191,-500.0,0.00013698,2]
[333060145,1721793044202,-309.90414721,0.00013698,2]
[333060146,1721793044212,-1352.51,0.00013698,2]
[333060147,1721793044223,-1085.05,0.00013698,2]
[333060148,1721793044233,-500.0,0.00013698,2]
[333060149,1721793044244,-151.0,0.00013698,2]
[333060150,1721793044256,-500.0,0.00013698,2]
[333060151,1721793044267,-500.0,0.00013698,2]
[333060152,1721793044282,-116.32926765,0.00013698,2]
[333060161,1721793076133,318.07462538,9.999e-05,2]
[333060162,1721793082501,154.98506355,9.999e-05,2]
[333060163,1721793085660,404.3074502,9.999e-05,2]
[333060164,1721793144620,1964.38,9.999e-05,2]
[333060165,1721793145229,-13902.82446901,9.999e-05,2]
[333060166,1721793165692,-155.97698715,9.999e-05,2]
[333060169,1721794027127,-5379.06107749,0.00012681,2]
[333060170,1721794042136,-1473.54867961,0.00012681,2]
[333060171,1721794042157,-200.0,0.00013425,2]
[333060172,1721794042181,-868.80752476,0.00013598,2]
[333060173,1721794042203,-500.0,0.0001366,2]